[Event "Titled Tuesday Blitz August 09 Early 2022"]
[White "Atakhan, Abtin"]
[Black "Pranav Anand"]
[WhiteFideId "22502203"]
[BlackFideId "46626786"]
[WhiteElo "2709"]
[BlackElo "2856"]
[Result "0-1"]
[Round "06"]
[TimeControl "180+1"]
[Date "2022.08.09"]
[WhiteClock "0:00:03"]
[BlackClock "0:00:16"]

1. d4 {[%clk 0:03:00]}  g6 {[%clk 0:02:59]} 2. Nf3 {[%clk 0:02:59]}  Bg7 {[%clk 0:03:00]} 3. g3 {[%clk 0:02:57]}  d6 {[%clk 0:03:00]} 4. Bg2 {[%clk 0:02:57]}  Nd7 {[%clk 0:03:01]} 5. O-O {[%clk 0:02:57]}  e5 {[%clk 0:03:01]} 6. e4 {[%clk 0:02:56]}  Ne7 {[%clk 0:03:01]} 7. Nc3 {[%clk 0:02:56]}  O-O {[%clk 0:03:01]} 8. Re1 {[%clk 0:02:56]}  Nc6 {[%clk 0:03:00]} 9. Bg5 {[%clk 0:02:54]}  f6 {[%clk 0:02:57]} 10. Bc1 {[%clk 0:02:51]}  Kh8 {[%clk 0:02:49]} 11. h4 {[%clk 0:02:43]}  exd4 {[%clk 0:02:45]} 12. Nxd4 {[%clk 0:02:43]}  Nxd4 {[%clk 0:02:46]} 13. Qxd4 {[%clk 0:02:44]}  f5 {[%clk 0:02:47]} 14. Qd1 {[%clk 0:02:38]}  Ne5 {[%clk 0:02:34]} 15. Bg5 {[%clk 0:02:31]}  Bf6 {[%clk 0:02:34]} 16. Bh6 {[%clk 0:02:30]}  Bg7 {[%clk 0:02:23]} 17. Bxg7+ {[%clk 0:02:29]}  Kxg7 {[%clk 0:02:23]} 18. exf5 {[%clk 0:02:25]}  Bxf5 {[%clk 0:02:22]} 19. Qd4 {[%clk 0:02:18]}  Qf6 {[%clk 0:02:20]} 20. Qf4 {[%clk 0:02:04]}  c6 {[%clk 0:01:38]} 21. Re2 {[%clk 0:01:59]}  Rae8 {[%clk 0:01:35]} 22. Rae1 {[%clk 0:01:57]}  Bg4 {[%clk 0:01:32]} 23. Qxf6+ {[%clk 0:01:52]}  Rxf6 {[%clk 0:01:33]} 24. Re3 {[%clk 0:01:50]}  Bf3 {[%clk 0:01:19]} 25. Ne4 {[%clk 0:01:18]}  Bxe4 {[%clk 0:01:17]} 26. Rxe4 {[%clk 0:01:19]}  Ref8 {[%clk 0:01:14]} 27. R1e2 {[%clk 0:01:18]}  R6f7 {[%clk 0:01:11]} 28. c4 {[%clk 0:01:14]}  Nd3 {[%clk 0:01:09]} 29. f4 {[%clk 0:01:11]}  Nc5 {[%clk 0:01:03]} 30. Rd4 {[%clk 0:01:10]}  Rd8 {[%clk 0:01:03]} 31. b4 {[%clk 0:01:08]}  Na4 {[%clk 0:00:59]} 32. b5 {[%clk 0:01:08]}  cxb5 {[%clk 0:00:54]} 33. cxb5 {[%clk 0:01:07]}  Nc3 {[%clk 0:00:55]} 34. Rb2 {[%clk 0:01:00]}  Re7 {[%clk 0:00:55]} 35. Rd3 {[%clk 0:00:56]}  Rc7 {[%clk 0:00:46]} 36. b6 {[%clk 0:00:40]}  axb6 {[%clk 0:00:44]} 37. Rxb6 {[%clk 0:00:39]}  d5 {[%clk 0:00:44]} 38. Kh2 {[%clk 0:00:28]}  Rdd7 {[%clk 0:00:38]} 39. a3 {[%clk 0:00:21]}  Kf7 {[%clk 0:00:30]} 40. h5 {[%clk 0:00:20]}  gxh5 {[%clk 0:00:29]} 41. Rh6 {[%clk 0:00:16]}  Kg7 {[%clk 0:00:27]} 42. Rxh5 {[%clk 0:00:17]}  d4 {[%clk 0:00:26]} 43. Rg5+ {[%clk 0:00:14]}  Kf8 {[%clk 0:00:24]} 44. f5 {[%clk 0:00:13]}  Ne2 {[%clk 0:00:22]} 45. f6 {[%clk 0:00:13]}  Nc1 {[%clk 0:00:23]} 46. Rd1 {[%clk 0:00:09]}  d3 {[%clk 0:00:23]} 47. Bd5 {[%clk 0:00:09]}  Rxd5 {[%clk 0:00:20]} 48. Rxd5 {[%clk 0:00:09]}  Kf7 {[%clk 0:00:21]} 49. Rf5 {[%clk 0:00:07]}  Rc2+ {[%clk 0:00:19]} 50. Kh3 {[%clk 0:00:06]}  Rc3 {[%clk 0:00:18]} 51. Rf3 {[%clk 0:00:06]}  Rc6 {[%clk 0:00:17]} 52. Rff1 {[%clk 0:00:05]}  Nb3 {[%clk 0:00:09]} 53. Rxd3 {[%clk 0:00:05]}  Nc5 {[%clk 0:00:10]} 54. Re3 {[%clk 0:00:05]}  Ne6 {[%clk 0:00:10]} 55. Rd3 {[%clk 0:00:04]}  Rc7 {[%clk 0:00:10]} 56. Rd6 {[%clk 0:00:04]}  Ng5+ {[%clk 0:00:10]} 57. Kg2 {[%clk 0:00:04]}  Ne4 {[%clk 0:00:10]} 58. Rd3 {[%clk 0:00:03]}  Nxf6 {[%clk 0:00:10]} 59. Rdf3 {[%clk 0:00:03]}  Rc6 {[%clk 0:00:10]} 60. g4 {[%clk 0:00:03]}  Kg6 {[%clk 0:00:11]} 61. Kg3 {[%clk 0:00:03]}  Ne4+ {[%clk 0:00:11]} 62. Kf4 {[%clk 0:00:03]}  Nd2 {[%clk 0:00:11]} 63. R1f2 {[%clk 0:00:02]}  Nxf3 {[%clk 0:00:12]} 64. Rxf3 {[%clk 0:00:03]}  Rc4+ {[%clk 0:00:12]} 65. Kg3 {[%clk 0:00:03]}  Ra4 {[%clk 0:00:13]} 66. Rb3 {[%clk 0:00:03]}  Ra7 {[%clk 0:00:12]} 67. Rb6+ {[%clk 0:00:04]}  Kg7 {[%clk 0:00:13]} 68. Rb3 {[%clk 0:00:04]}  Kf6 {[%clk 0:00:13]} 69. Rb6+ {[%clk 0:00:04]}  Ke5 {[%clk 0:00:13]} 70. Kh4 {[%clk 0:00:03]}  Kf4 {[%clk 0:00:09]} 71. Rf6+ {[%clk 0:00:02]}  Ke5 {[%clk 0:00:09]} 72. Rf7 {[%clk 0:00:03]}  Rxa3 {[%clk 0:00:07]} 73. Rxb7 {[%clk 0:00:03]}  Kf6 {[%clk 0:00:05]} 74. Rxh7 {[%clk 0:00:03]}  Kg6 {[%clk 0:00:06]} 75. Rh5 {[%clk 0:00:03]}  Ra1 {[%clk 0:00:07]} 76. Rg5+ {[%clk 0:00:04]}  Kh6 {[%clk 0:00:08]} 77. Rb5 {[%clk 0:00:03]}  Rh1+ {[%clk 0:00:08]} 78. Kg3 {[%clk 0:00:04]}  Kg7 {[%clk 0:00:09]} 79. Rf5 {[%clk 0:00:02]}  Rc1 {[%clk 0:00:10]} 80. Rf2 {[%clk 0:00:02]}  Rc3+ {[%clk 0:00:10]} 81. Rf3 {[%clk 0:00:03]}  Rc5 {[%clk 0:00:11]} 82. Kf4 {[%clk 0:00:04]}  Rc4+ {[%clk 0:00:11]} 83. Kg3 {[%clk 0:00:04]}  Rc5 {[%clk 0:00:12]} 84. Kh4 {[%clk 0:00:04]}  Rc6 {[%clk 0:00:12]} 85. Rf5 {[%clk 0:00:04]}  Rc7 {[%clk 0:00:12]} 86. Kg5 {[%clk 0:00:04]}  Rd7 {[%clk 0:00:13]} 87. Re5 {[%clk 0:00:04]}  Rc7 {[%clk 0:00:13]} 88. Kf5 {[%clk 0:00:04]}  Rf7+ {[%clk 0:00:14]} 89. Ke6 {[%clk 0:00:04]}  Rf4 {[%clk 0:00:14]} 90. Rg5+ {[%clk 0:00:04]}  Kh6 {[%clk 0:00:13]} 91. Rg8 {[%clk 0:00:04]}  Kh7 {[%clk 0:00:13]} 92. Ke5 {[%clk 0:00:04]}  Rf1 {[%clk 0:00:13]} 93. Rg5 {[%clk 0:00:04]}  Kh6 {[%clk 0:00:13]} 94. Rf5 {[%clk 0:00:04]}  Rg1 {[%clk 0:00:13]} 95. Kf4 {[%clk 0:00:03]}  Kg6 {[%clk 0:00:14]} 96. Rg5+ {[%clk 0:00:03]}  Kf6 {[%clk 0:00:14]} 97. Rf5+ {[%clk 0:00:04]}  Kg6 {[%clk 0:00:15]} 98. Rf8 {[%clk 0:00:04]}  Rf1+ {[%clk 0:00:15]} 99. Ke5 {[%clk 0:00:03]}  Rxf8 {[%clk 0:00:16]} 0-1


[Site "https://www.chess.com"]

[Event "Titled Tuesday Blitz August 09 Early 2022"]
[White "Avalos Parra, Joao"]
[Black "Kiseljova, Marya"]
[WhiteFideId "3402541"]
[BlackFideId "4155009"]
[WhiteElo "2173"]
[BlackElo "1697"]
[Result "0-1"]
[Round "06"]
[TimeControl "180+1"]
[Date "2022.08.09"]
[WhiteClock "0:00:17"]
[BlackClock "0:00:07"]

1. d4 {[%clk 0:02:13]}  d5 {[%clk 0:02:59]} 2. Nc3 {[%clk 0:02:12]}  e6 {[%clk 0:03:00]} 3. e4 {[%clk 0:02:12]}  dxe4 {[%clk 0:02:51]} 4. Nxe4 {[%clk 0:02:11]}  Nf6 {[%clk 0:02:48]} 5. Bg5 {[%clk 0:02:11]}  Be7 {[%clk 0:02:48]} 6. Bxf6 {[%clk 0:02:11]}  Bxf6 {[%clk 0:02:47]} 7. Nf3 {[%clk 0:02:09]}  O-O {[%clk 0:02:45]} 8. c3 {[%clk 0:02:07]}  b6 {[%clk 0:02:32]} 9. Bd3 {[%clk 0:02:07]}  Bb7 {[%clk 0:02:29]} 10. Qe2 {[%clk 0:02:07]}  Nd7 {[%clk 0:02:26]} 11. O-O-O {[%clk 0:02:07]}  Qe7 {[%clk 0:02:16]} 12. g4 {[%clk 0:02:06]}  g6 {[%clk 0:01:48]} 13. h4 {[%clk 0:02:05]}  c5 {[%clk 0:01:42]} 14. h5 {[%clk 0:01:58]}  cxd4 {[%clk 0:01:35]} 15. cxd4 {[%clk 0:01:53]}  Rac8+ {[%clk 0:01:27]} 16. Kb1 {[%clk 0:01:52]}  Qb4 {[%clk 0:00:57]} 17. hxg6 {[%clk 0:01:39]}  fxg6 {[%clk 0:00:55]} 18. Nxf6+ {[%clk 0:01:32]}  Rxf6 {[%clk 0:00:54]} 19. Ne5 {[%clk 0:01:16]}  Bxh1 {[%clk 0:00:31]} 20. Nxd7 {[%clk 0:01:13]}  Rf7 {[%clk 0:00:30]} 21. Qxe6 {[%clk 0:01:07]}  Qa4 {[%clk 0:00:10]} 22. Rxh1 {[%clk 0:00:22]}  Qxd7 {[%clk 0:00:10]} 23. Qe5 {[%clk 0:00:13]}  Re8 {[%clk 0:00:08]} 24. Qg5 {[%clk 0:00:09]}  Qxd4 {[%clk 0:00:05]} 25. Bc2 {[%clk 0:00:05]}  Qxf2 {[%clk 0:00:05]} 26. a3 {[%clk 0:00:04]}  Re1+ {[%clk 0:00:04]} 27. Rxe1 {[%clk 0:00:03]}  Qxe1+ {[%clk 0:00:05]} 28. Ka2 {[%clk 0:00:03]}  Qe7 {[%clk 0:00:05]} 29. Qd5 {[%clk 0:00:02]}  Qd7 {[%clk 0:00:04]} 30. Bb3 {[%clk 0:00:03]}  Kg7 {[%clk 0:00:03]} 31. Qe5+ {[%clk 0:00:02]}  Rf6 {[%clk 0:00:03]} 32. g5 {[%clk 0:00:02]}  Qd8 {[%clk 0:00:01]} 33. Qxf6+ {[%clk 0:00:03]}  Qxf6 {[%clk 0:00:02]} 34. gxf6+ {[%clk 0:00:04]}  Kxf6 {[%clk 0:00:02]} 35. Bd5 {[%clk 0:00:04]}  Ke5 {[%clk 0:00:02]} 36. Bb7 {[%clk 0:00:05]}  g5 {[%clk 0:00:03]} 37. Kb3 {[%clk 0:00:06]}  Kf4 {[%clk 0:00:03]} 38. Kc3 {[%clk 0:00:07]}  Ke3 {[%clk 0:00:03]} 39. Kc2 {[%clk 0:00:07]}  g4 {[%clk 0:00:04]} 40. a4 {[%clk 0:00:08]}  g3 {[%clk 0:00:03]} 41. b4 {[%clk 0:00:09]}  h5 {[%clk 0:00:03]} 42. Bg2 {[%clk 0:00:09]}  h4 {[%clk 0:00:03]} 43. Bh3 {[%clk 0:00:10]}  Kf2 {[%clk 0:00:03]} 44. Kc3 {[%clk 0:00:10]}  g2 {[%clk 0:00:04]} 45. Bxg2 {[%clk 0:00:11]}  Kxg2 {[%clk 0:00:04]} 46. a5 {[%clk 0:00:11]}  h3 {[%clk 0:00:05]} 47. axb6 {[%clk 0:00:11]}  axb6 {[%clk 0:00:05]} 48. Kc4 {[%clk 0:00:12]}  h2 {[%clk 0:00:06]} 49. Kb5 {[%clk 0:00:13]}  h1=Q {[%clk 0:00:05]} 50. Kxb6 {[%clk 0:00:14]}  Kg3 {[%clk 0:00:05]} 51. b5 {[%clk 0:00:14]}  Kf4 {[%clk 0:00:03]} 52. Kc7 {[%clk 0:00:15]}  Qc1+ {[%clk 0:00:04]} 53. Kd7 {[%clk 0:00:15]}  Qd2+ {[%clk 0:00:04]} 54. Kc6 {[%clk 0:00:15]}  Qc3+ {[%clk 0:00:04]} 55. Kd6 {[%clk 0:00:15]}  Qd4+ {[%clk 0:00:05]} 56. Kc6 {[%clk 0:00:15]}  Qc4+ {[%clk 0:00:05]} 57. Kb6 {[%clk 0:00:16]}  Ke5 {[%clk 0:00:06]} 58. Ka5 {[%clk 0:00:15]}  Qa2+ {[%clk 0:00:05]} 59. Kb6 {[%clk 0:00:16]}  Kd6 {[%clk 0:00:06]} 60. Kb7 {[%clk 0:00:15]}  Qa5 {[%clk 0:00:05]} 61. b6 {[%clk 0:00:16]}  Kd7 {[%clk 0:00:05]} 62. Kb8 {[%clk 0:00:15]}  Qxb6+ {[%clk 0:00:06]} 63. Ka8 {[%clk 0:00:16]}  Qb5 {[%clk 0:00:05]} 64. Ka7 {[%clk 0:00:16]}  Kc7 {[%clk 0:00:06]} 65. Ka8 {[%clk 0:00:17]}  Qb7# {[%clk 0:00:07]} 0-1


[Site "https://www.chess.com"]

[Event "Titled Tuesday Blitz August 09 Early 2022"]
[White "Bharath Subramaniyam H"]
[Black "Matlakov, Maxim"]
[WhiteFideId "46634827"]
[BlackFideId "4168003"]
[WhiteElo "2751"]
[BlackElo "2908"]
[Result "1-0"]
[Round "06"]
[TimeControl "180+1"]
[Date "2022.08.09"]
[WhiteClock "0:00:07"]
[BlackClock "0:00:08"]

1. e4 {[%clk 0:02:58]}  e5 {[%clk 0:03:00]} 2. Nf3 {[%clk 0:02:58]}  Nc6 {[%clk 0:03:00]} 3. Bb5 {[%clk 0:02:58]}  Nf6 {[%clk 0:03:00]} 4. Nc3 {[%clk 0:02:57]}  Nd4 {[%clk 0:02:58]} 5. Bc4 {[%clk 0:02:52]}  Bc5 {[%clk 0:02:56]} 6. d3 {[%clk 0:02:47]}  d6 {[%clk 0:02:55]} 7. h3 {[%clk 0:02:46]}  a6 {[%clk 0:02:53]} 8. a4 {[%clk 0:02:44]}  h6 {[%clk 0:02:53]} 9. Nxd4 {[%clk 0:02:41]}  Bxd4 {[%clk 0:02:53]} 10. Ne2 {[%clk 0:02:40]}  Ba7 {[%clk 0:02:52]} 11. O-O {[%clk 0:02:38]}  g5 {[%clk 0:02:51]} 12. Ng3 {[%clk 0:02:36]}  Rg8 {[%clk 0:02:48]} 13. Be3 {[%clk 0:02:34]}  Qe7 {[%clk 0:02:29]} 14. Bxa7 {[%clk 0:02:32]}  Rxa7 {[%clk 0:02:30]} 15. d4 {[%clk 0:02:17]}  Ra8 {[%clk 0:02:30]} 16. Qd3 {[%clk 0:02:04]}  Kf8 {[%clk 0:02:28]} 17. Rad1 {[%clk 0:01:47]}  h5 {[%clk 0:02:18]} 18. Qb3 {[%clk 0:01:42]}  exd4 {[%clk 0:02:05]} 19. Rxd4 {[%clk 0:01:39]}  h4 {[%clk 0:02:04]} 20. Nf5 {[%clk 0:01:27]}  Bxf5 {[%clk 0:01:54]} 21. exf5 {[%clk 0:01:27]}  c5 {[%clk 0:01:54]} 22. Rdd1 {[%clk 0:01:25]}  g4 {[%clk 0:01:55]} 23. Rfe1 {[%clk 0:01:21]}  Qd7 {[%clk 0:01:54]} 24. Qe3 {[%clk 0:01:17]}  Rg7 {[%clk 0:01:19]} 25. Qh6 {[%clk 0:01:13]}  Qxf5 {[%clk 0:01:19]} 26. Rxd6 {[%clk 0:01:06]}  Ne4 {[%clk 0:00:48]} 27. Qh8+ {[%clk 0:00:36]}  Ke7 {[%clk 0:00:48]} 28. Rxe4+ {[%clk 0:00:28]}  Qxe4 {[%clk 0:00:49]} 29. Qxa8 {[%clk 0:00:24]}  Kxd6 {[%clk 0:00:32]} 30. Qf8+ {[%clk 0:00:21]}  Kc6 {[%clk 0:00:28]} 31. Qxg7 {[%clk 0:00:20]}  Qxc4 {[%clk 0:00:28]} 32. Qf6+ {[%clk 0:00:15]}  Kc7 {[%clk 0:00:23]} 33. hxg4 {[%clk 0:00:16]}  Qxg4 {[%clk 0:00:17]} 34. Qxf7+ {[%clk 0:00:16]}  Kb6 {[%clk 0:00:18]} 35. Qb3+ {[%clk 0:00:13]}  Ka5 {[%clk 0:00:16]} 36. Qxb7 {[%clk 0:00:11]}  Qd1+ {[%clk 0:00:16]} 37. Kh2 {[%clk 0:00:11]}  Qxc2 {[%clk 0:00:17]} 38. b3 {[%clk 0:00:11]}  Qxf2 {[%clk 0:00:15]} 39. Qc7+ {[%clk 0:00:09]}  Kb4 {[%clk 0:00:16]} 40. Qb6+ {[%clk 0:00:09]}  Ka3 {[%clk 0:00:16]} 41. Qxa6 {[%clk 0:00:09]}  Qg3+ {[%clk 0:00:16]} 42. Kg1 {[%clk 0:00:10]}  h3 {[%clk 0:00:16]} 43. Qe2 {[%clk 0:00:08]}  hxg2 {[%clk 0:00:14]} 44. a5 {[%clk 0:00:06]}  Qxb3 {[%clk 0:00:13]} 45. a6 {[%clk 0:00:06]}  c4 {[%clk 0:00:11]} 46. a7 {[%clk 0:00:05]}  Qb6+ {[%clk 0:00:09]} 47. Qf2 {[%clk 0:00:05]}  Qb1+ {[%clk 0:00:08]} 48. Kxg2 {[%clk 0:00:05]}  Qb7+ {[%clk 0:00:09]} 49. Qf3+ {[%clk 0:00:05]}  Qxf3+ {[%clk 0:00:05]} 50. Kxf3 {[%clk 0:00:06]}  c3 {[%clk 0:00:06]} 51. a8=Q+ {[%clk 0:00:07]}  Kb2 {[%clk 0:00:07]} 52. Qb7+ {[%clk 0:00:07]}  Kc1 {[%clk 0:00:07]} 53. Ke2 {[%clk 0:00:07]}  c2 {[%clk 0:00:08]} 54. Kd3 {[%clk 0:00:07]} 1-0


[Site "https://www.chess.com"]

[Event "Titled Tuesday Blitz August 09 Early 2022"]
[White "Bilych, Olexiy"]
[Black "Janaszak, Dawid"]
[WhiteFideId "14156504"]
[BlackFideId "1119206"]
[WhiteElo "2157"]
[BlackElo "2165"]
[Result "1-0"]
[Round "06"]
[TimeControl "180+1"]
[Date "2022.08.09"]
[WhiteClock "0:00:06"]
[BlackClock "0:00:08"]

1. e4 {[%clk 0:03:00]}  e5 {[%clk 0:02:58]} 2. Nf3 {[%clk 0:03:01]}  Nf6 {[%clk 0:02:58]} 3. Nxe5 {[%clk 0:03:00]}  d6 {[%clk 0:02:57]} 4. Nf3 {[%clk 0:03:01]}  Nxe4 {[%clk 0:02:57]} 5. d4 {[%clk 0:03:02]}  d5 {[%clk 0:02:56]} 6. Bd3 {[%clk 0:03:02]}  Bd6 {[%clk 0:02:55]} 7. O-O {[%clk 0:03:03]}  O-O {[%clk 0:02:53]} 8. c4 {[%clk 0:03:03]}  c6 {[%clk 0:02:53]} 9. Nc3 {[%clk 0:03:04]}  Bf5 {[%clk 0:02:49]} 10. Qc2 {[%clk 0:02:53]}  Re8 {[%clk 0:02:46]} 11. Re1 {[%clk 0:02:51]}  Na6 {[%clk 0:02:08]} 12. a3 {[%clk 0:02:48]}  Qf6 {[%clk 0:01:45]} 13. Nxe4 {[%clk 0:02:39]}  dxe4 {[%clk 0:01:45]} 14. Bxe4 {[%clk 0:02:36]}  Rxe4 {[%clk 0:01:43]} 15. Rxe4 {[%clk 0:02:37]}  Qg6 {[%clk 0:01:42]} 16. Nd2 {[%clk 0:02:08]}  Bf4 {[%clk 0:01:36]} 17. f3 {[%clk 0:01:55]}  Be3+ {[%clk 0:01:36]} 18. Kf1 {[%clk 0:01:48]}  Bxd4 {[%clk 0:01:25]} 19. Nb3 {[%clk 0:01:21]}  Bf6 {[%clk 0:01:13]} 20. Bf4 {[%clk 0:01:10]}  Bxe4 {[%clk 0:00:59]} 21. Qxe4 {[%clk 0:01:11]}  Qxe4 {[%clk 0:00:56]} 22. fxe4 {[%clk 0:01:12]}  Bxb2 {[%clk 0:00:57]} 23. Rb1 {[%clk 0:01:12]}  Bxa3 {[%clk 0:00:56]} 24. Na5 {[%clk 0:01:13]}  Nc5 {[%clk 0:00:51]} 25. Nxb7 {[%clk 0:01:08]}  Nxe4 {[%clk 0:00:51]} 26. Na5 {[%clk 0:01:04]}  Bd6 {[%clk 0:00:49]} 27. Be3 {[%clk 0:01:00]}  Bxh2 {[%clk 0:00:43]} 28. Nxc6 {[%clk 0:00:57]}  a6 {[%clk 0:00:40]} 29. c5 {[%clk 0:00:39]}  h5 {[%clk 0:00:38]} 30. Rb7 {[%clk 0:00:33]}  a5 {[%clk 0:00:33]} 31. Ne7+ {[%clk 0:00:30]}  Kf8 {[%clk 0:00:34]} 32. c6 {[%clk 0:00:31]}  Nd6 {[%clk 0:00:26]} 33. Rd7 {[%clk 0:00:27]}  Nb5 {[%clk 0:00:26]} 34. Bc5 {[%clk 0:00:22]}  a4 {[%clk 0:00:19]} 35. c7 {[%clk 0:00:09]}  Nxc7 {[%clk 0:00:19]} 36. Nd5+ {[%clk 0:00:09]}  Ke8 {[%clk 0:00:17]} 37. Rxc7 {[%clk 0:00:06]}  a3 {[%clk 0:00:10]} 38. Re7+ {[%clk 0:00:06]}  Kd8 {[%clk 0:00:10]} 39. Rxf7 {[%clk 0:00:06]}  Ra4 {[%clk 0:00:07]} 40. Rf8+ {[%clk 0:00:04]}  Kd7 {[%clk 0:00:07]} 41. Nb6+ {[%clk 0:00:05]}  Kc6 {[%clk 0:00:07]} 42. Nxa4 {[%clk 0:00:05]}  Kb5 {[%clk 0:00:08]} 43. Bxa3 {[%clk 0:00:05]}  Kxa4 {[%clk 0:00:08]} 44. Bb2 {[%clk 0:00:06]} 1-0


[Site "https://www.chess.com"]

[Event "Titled Tuesday Blitz August 09 Early 2022"]
[White "Bortnyk, Olexandr"]
[Black "Garriga Cazorla, Pere"]
[WhiteFideId "14120828"]
[BlackFideId "32011601"]
[WhiteElo "3056"]
[BlackElo "2823"]
[Result "1-0"]
[Round "06"]
[TimeControl "180+1"]
[Date "2022.08.09"]
[WhiteClock "0:00:04"]
[BlackClock "0:00:11"]

1. d4 {[%clk 0:03:00]}  Nf6 {[%clk 0:02:51]} 2. Nc3 {[%clk 0:03:00]}  d5 {[%clk 0:02:50]} 3. Bf4 {[%clk 0:03:00]}  c5 {[%clk 0:02:49]} 4. e4 {[%clk 0:03:00]}  cxd4 {[%clk 0:02:49]} 5. Qxd4 {[%clk 0:03:00]}  Nc6 {[%clk 0:02:50]} 6. Qa4 {[%clk 0:03:00]}  d4 {[%clk 0:02:47]} 7. Nb5 {[%clk 0:02:58]}  e5 {[%clk 0:02:43]} 8. Bxe5 {[%clk 0:02:57]}  Bb4+ {[%clk 0:02:40]} 9. c3 {[%clk 0:02:57]}  dxc3 {[%clk 0:02:31]} 10. Bxc3 {[%clk 0:02:50]}  Bxc3+ {[%clk 0:02:06]} 11. Nxc3 {[%clk 0:02:51]}  O-O {[%clk 0:02:06]} 12. Nf3 {[%clk 0:02:46]}  Qb6 {[%clk 0:02:00]} 13. Qb5 {[%clk 0:02:44]}  Re8 {[%clk 0:01:46]} 14. Qxb6 {[%clk 0:02:42]}  axb6 {[%clk 0:01:46]} 15. Bd3 {[%clk 0:02:32]}  Nb4 {[%clk 0:01:24]} 16. Bb1 {[%clk 0:02:29]}  Bf5 {[%clk 0:00:59]} 17. Nd2 {[%clk 0:02:13]}  Be6 {[%clk 0:00:59]} 18. O-O {[%clk 0:01:54]}  Nd7 {[%clk 0:01:00]} 19. Nb5 {[%clk 0:01:13]}  Rec8 {[%clk 0:00:48]} 20. a3 {[%clk 0:01:13]}  Nc2 {[%clk 0:00:44]} 21. Bxc2 {[%clk 0:01:10]}  Rxc2 {[%clk 0:00:45]} 22. Rfd1 {[%clk 0:01:08]}  Ra5 {[%clk 0:00:39]} 23. Nd4 {[%clk 0:01:07]}  Rc7 {[%clk 0:00:33]} 24. b4 {[%clk 0:01:05]}  Ra8 {[%clk 0:00:29]} 25. Nxe6 {[%clk 0:01:04]}  fxe6 {[%clk 0:00:29]} 26. Nf3 {[%clk 0:00:49]}  Kf7 {[%clk 0:00:21]} 27. Rxd7+ {[%clk 0:00:45]}  Rxd7 {[%clk 0:00:22]} 28. Ne5+ {[%clk 0:00:45]}  Ke7 {[%clk 0:00:22]} 29. Nxd7 {[%clk 0:00:46]}  Kxd7 {[%clk 0:00:23]} 30. Rd1+ {[%clk 0:00:47]}  Ke7 {[%clk 0:00:20]} 31. Rd3 {[%clk 0:00:47]}  Rc8 {[%clk 0:00:21]} 32. f3 {[%clk 0:00:45]}  Rc2 {[%clk 0:00:21]} 33. h4 {[%clk 0:00:45]}  Ra2 {[%clk 0:00:20]} 34. Kh2 {[%clk 0:00:34]}  Rc2 {[%clk 0:00:20]} 35. Kg3 {[%clk 0:00:31]}  Ra2 {[%clk 0:00:20]} 36. h5 {[%clk 0:00:29]}  Rc2 {[%clk 0:00:20]} 37. Kh3 {[%clk 0:00:29]}  Ra2 {[%clk 0:00:20]} 38. g3 {[%clk 0:00:29]}  Rc2 {[%clk 0:00:20]} 39. Kg4 {[%clk 0:00:30]}  Rh2 {[%clk 0:00:19]} 40. Rc3 {[%clk 0:00:26]}  Kd7 {[%clk 0:00:19]} 41. Kg5 {[%clk 0:00:20]}  Rd2 {[%clk 0:00:15]} 42. g4 {[%clk 0:00:16]}  Ra2 {[%clk 0:00:13]} 43. Rd3+ {[%clk 0:00:12]}  Ke7 {[%clk 0:00:14]} 44. e5 {[%clk 0:00:13]}  Re2 {[%clk 0:00:13]} 45. Kf4 {[%clk 0:00:11]}  Rc2 {[%clk 0:00:12]} 46. Rd6 {[%clk 0:00:11]}  Rc4+ {[%clk 0:00:11]} 47. Kg3 {[%clk 0:00:10]}  Rc6 {[%clk 0:00:12]} 48. Rxc6 {[%clk 0:00:09]}  bxc6 {[%clk 0:00:13]} 49. a4 {[%clk 0:00:08]}  Kd7 {[%clk 0:00:13]} 50. f4 {[%clk 0:00:08]}  c5 {[%clk 0:00:11]} 51. bxc5 {[%clk 0:00:07]}  bxc5 {[%clk 0:00:12]} 52. f5 {[%clk 0:00:04]}  Kc6 {[%clk 0:00:11]} 53. h6 {[%clk 0:00:03]}  gxh6 {[%clk 0:00:11]} 54. f6 {[%clk 0:00:03]}  Kd7 {[%clk 0:00:11]} 55. Kf3 {[%clk 0:00:03]}  h5 {[%clk 0:00:11]} 56. gxh5 {[%clk 0:00:04]} 1-0


[Site "https://www.chess.com"]